bitfinex/quotes_ETHUSD_20241204
["timestamp","ask_amount","ask_price","bid_price","bid_amount"]
[1733278158293,3.0,3650.5,3650.0,59.59088436]
[1733278158609,3.0,3650.7,3650.0,53.84206261]
[1733278158809,3.0,3650.5,3650.0,53.84206261]
[1733278159229,3.0,3650.4,3650.0,53.84206261]
[1733278159445,8.0,3650.1,3650.0,43.38069655]
[1733278159747,4.0,3650.2,3650.0,43.38069655]
[1733278160445,4.0,3650.1,3650.0,46.10653202]
[1733278160941,3.93265276,3650.1,3650.0,46.10653202]
[1733278161136,0.05353763,3650.3,3650.1,2.73965]
[1733278161308,8.76,3651.8,3650.8,2.73912]
[1733278161506,8.76,3652.7,3650.8,2.73912]
[1733278161739,8.76,3652.7,3651.0,2.73893]
[1733278161909,8.76,3652.5,3651.1,2.73884]
[1733278162115,8.76,3652.6,3650.6,2.73927]
[1733278162324,8.76,3652.6,3651.4,2.73865]
[1733278162704,8.76,3652.6,3650.8,2.73911]
[1733278162936,5.0,3653.1,3650.7,0.273927]
[1733278162937,8.76,3652.8,3650.7,0.273927]
[1733278163133,8.76,3652.8,3650.9,2.73903]
[1733278163349,8.76,3652.9,3650.4,1.5079]
[1733278163552,0.3,3654.0,3650.4,1.5079]
[1733278163553,8.76,3653.4,3650.8,2.73912]
[1733278163717,8.76,3653.4,3650.8,4.24702]
[1733278163921,8.76,3653.0,3652.2,2.738]
[1733278164231,8.76,3653.0,3651.7,2.73841]
[1733278164232,8.76,3653.4,3652.0,2.73822]
[1733278164438,5.1,3654.5,3652.0,0.547649]
[1733278164439,8.76,3653.6,3652.0,0.547649]
[1733278164608,8.76,3653.9,3651.9,1.5079]
[1733278164822,8.76,3653.3,3651.9,1.65869]
[1733278165185,8.76,3654.1,3652.4,2.73789]
[1733278165357,8.76,3654.2,3651.0,1.5079]
[1733278165527,8.76,3653.8,3652.5,2.73781]
[1733278165727,8.76,3653.9,3651.1,2.7389]
[1733278166027,8.76,3654.2,3652.7,2.73765]
[1733278166262,8.76,3653.7,3652.7,2.73765]
[1733278166575,2.73637,3654.5,3652.1,1.5]
[1733278166576,8.76,3653.9,3652.9,2.73752]
[1733278167243,0.12726,3652.9,3652.1,4.23813]
[1733278167425,0.12726,3652.9,3652.7,2.73764]
[1733278168564,0.12726,3652.9,3652.3,2.73793]
[1733278168731,0.12726,3652.9,3652.4,2.7379]
[1733278168920,0.12726,3652.9,3652.5,2.73782]
[1733278169359,0.12726,3652.9,3652.2,0.423813]
[1733278169661,0.12726,3652.9,3652.1,1.5]
[1733278169662,0.12726,3652.9,3652.7,2.73764]
[1733278170084,0.12726,3652.9,3652.1,1.5]
[1733278170282,0.12726,3652.9,3652.5,2.73783]
[1733278170459,0.12726,3652.9,3652.7,2.73768]
[1733278170858,0.12726,3652.9,3652.7,2.72354103]
[1733278171185,0.12726,3652.9,3652.1,1.5]
[1733278171389,0.12726,3652.9,3652.2,0.15]
[1733278171887,0.12726,3652.9,3652.6,2.73775]
[1733278172089,0.12726,3652.9,3652.5,2.7378]
[1733278172449,8.76,3652.8,3650.4,1.6652]
[1733278172647,2.73785,3652.5,3650.4,4.40461]
[1733278172879,2.79519574,3652.5,3650.4,4.845071]
[1733278173058,8.76,3652.4,3651.4,2.7386]
[1733278173264,8.76,3652.4,3650.4,2.105661]
[1733278173265,0.05734574,3652.5,3650.7,2.7392]
[1733278173478,0.05734574,3652.5,3652.0,2.73819]
[1733278173790,8.76,3653.9,3652.8,2.7376]
[1733278173988,8.76,3654.3,3652.8,2.7376]
[1733278174288,0.05732622,3654.2,3652.8,2.7376]
[1733278174693,8.76,3654.1,3651.6,1.6094]
[1733278174990,8.76,3654.1,3652.6,2.73776]
[1733278175143,8.76,3654.1,3651.8,2.73837]
[1733278175350,8.76,3654.1,3652.0,2.73822]
[1733278175657,8.76,3654.1,3651.8,2.73837]
[1733278175862,8.76,3654.1,3652.8,2.73761]
[1733278177064,3.0,3654.0,3651.1,1.6451]
[1733278177249,2.73709,3653.6,3652.0,2.73821]
[1733278177448,8.76,3653.4,3652.1,2.73813]
[1733278177677,8.76,3653.4,3652.1,0.273813]
[1733278177880,8.81732622,3653.5,3652.2,2.73807]
[1733278178046,8.81732622,3653.5,3652.3,2.738]
[1733278178250,8.81732622,3653.5,3652.1,0.273813]
[1733278178451,8.76,3653.4,3652.7,2.73769]
[1733278179148,8.76,3653.4,3652.8,2.73761]
[1733278179349,8.76,3653.4,3651.3,2.73875]
[1733278179551,0.05732622,3653.5,3651.3,2.73875]
[1733278179779,0.05732622,3653.5,3651.4,2.73867]
[1733278179950,0.05732622,3653.5,3652.6,2.73775]
[1733278180150,0.05732622,3653.5,3651.7,2.73845]
[1733278180151,8.76,3653.4,3651.7,2.73845]
[1733278180397,8.76,3653.4,3651.8,2.73837]
[1733278180552,8.76,3653.4,3651.9,2.7383]
[1733278180902,0.05732622,3653.5,3652.6,2.73772]
[1733278181234,0.05732622,3653.5,3652.8,2.73759]
[1733278181389,0.05732622,3653.5,3652.8,2.73762]
[1733278181591,0.05732622,3653.5,3652.9,2.73754]
[1733278181802,11.49719,3653.4,3652.0,2.7382]
[1733278182000,8.81730689,3653.4,3651.1,2.76628228]
[1733278182238,0.05730689,3653.4,3651.3,1.5509]
[1733278182390,0.05730689,3653.4,3652.5,2.73779]
[1733278182742,0.05730689,3653.4,3651.3,1.5509]
[1733278182743,0.05730689,3653.4,3652.8,2.73759]
[1733278182945,0.05730689,3653.4,3652.8,2.724864]
[1733278183233,8.76,3653.3,3651.3,1.5509]
[1733278183541,0.14289142,3653.2,3652.0,2.7382]
[1733278183840,0.14289142,3653.2,3652.1,2.73814]
[1733278184021,0.14289142,3653.2,3651.3,1.70599]
[1733278184204,0.14289142,3653.2,3652.4,2.7379]
[1733278184205,0.08560366,3653.1,3652.4,2.7379]
[1733278184406,0.05728776,3653.2,3651.8,2.73831]
[1733278184611,0.05728776,3653.2,3651.5,2.7386]
[1733278184954,0.05728776,3653.2,3650.5,1.6288]
[1733278184955,8.76,3652.9,3650.5,1.6288]
[1733278185103,0.08560366,3652.8,3651.8,2.73837]
[1733278185307,8.76,3652.6,3650.7,2.7392]
[1733278185503,8.76,3652.4,3651.5,2.73859]
[1733278185735,0.05728776,3653.2,3650.6,0.16288]
[1733278185736,0.08560366,3652.3,3650.9,2.73905]
[1733278185929,8.76,3652.7,3650.7,7.1188]
[1733278186136,8.76,3652.7,3651.9,2.73829]
[1733278186435,0.08560953,3652.6,3652.0,2.73818]
[1733278186633,8.76,3653.1,3651.1,1.6404]
[1733278186929,0.08559832,3653.0,3651.1,1.6404]
[1733278187141,0.08559832,3653.0,3650.4,2.73939]
[1733278187142,8.76,3651.7,3650.4,2.73939]
[1733278187295,8.76,3651.7,3650.3,2.73948]
[1733278187296,0.08562119,3651.6,3650.3,2.73948]
[1733278187496,0.08563263,3651.5,3650.2,1.578]
[1733278187735,8.76,3652.2,3650.0,43.38069655]
[1733278187895,2.93846327,3652.1,3650.0,43.38069655]
[1733278188095,8.76,3651.9,3650.0,43.38069655]
[1733278188310,0.08563509,3651.8,3650.2,2.73957]
[1733278188643,0.08563509,3651.7,3650.5,2.73935]
[1733278188808,8.76,3651.9,3651.0,2.73895]
[1733278189011,0.08563329,3651.8,3651.0,2.73896]
[1733278189220,0.08562951,3651.7,3651.0,2.73896]
[1733278189420,8.76,3651.9,3651.2,2.73881]
[1733278189635,0.08562771,3651.8,3651.0,1.58902813]
[1733278189791,0.05725007,3652.0,3651.0,1.58902813]
[1733278189792,0.05725007,3652.0,3651.2,2.73882]
[1733278190139,0.05725007,3652.0,3651.0,0.03702813]
[1733278190440,8.76,3652.8,3651.0,0.03702813]
[1733278190595,8.76,3653.1,3651.9,2.73829]
[1733278190795,0.14339857,3653.0,3651.3,2.73875]
[1733278190999,8.76,3653.1,3651.3,2.73875]
[1733278191000,0.08561376,3652.9,3651.3,0.27757781]
[1733278191324,0.08561376,3652.8,3652.3,2.73798]
[1733278191508,0.08561376,3652.7,3652.1,2.73814]
[1733278191725,8.81778481,3653.1,3651.4,1.5675]
[1733278191726,0.08561376,3652.6,3651.4,1.5675]
[1733278192012,0.08561376,3652.5,3651.4,1.5675]
[1733278192200,0.08561376,3652.4,3652.1,2.73814]
[1733278192392,0.08561376,3652.3,3652.2,2.73806]
[1733278192832,0.08561376,3652.3,3651.5,0.45838578]
[1733278193030,0.05778481,3653.2,3651.1,2.73889]
[1733278193031,8.85707056,3652.2,3651.1,2.73889]
[1733278193239,0.08561716,3652.1,3650.6,2.73927]
[1733278193403,0.08561716,3652.1,3651.2,2.73881]
[1733278193607,0.08561716,3652.0,3651.3,2.73874]
[1733278193808,0.08561716,3651.9,3651.6,2.73847]
[1733278194017,0.08561716,3651.8,3651.6,2.73847]
[1733278194205,0.0114534,3652.2,3651.2,4.33606]
[1733278194395,0.08561477,3652.1,3651.3,0.43730881]
[1733278194605,0.0114534,3652.2,3651.3,0.43730881]
[1733278194805,8.76,3652.1,3648.6,2.74071]
[1733278195005,11.49834,3651.9,3651.0,8.13e-06]
[1733278195207,5.7389,3651.1,3651.0,8.13e-06]
[1733278195439,14.58451732,3651.1,3651.0,8.13e-06]
[1733278195667,18.58451732,3651.1,3651.0,8.13e-06]
[1733278195939,8.76,3651.0,3649.3,2.74023]
[1733278196139,0.14336103,3650.9,3649.2,0.005]
[1733278196346,0.08566912,3650.8,3649.6,2.74]
[1733278196496,0.08566912,3650.8,3649.2,0.005]
[1733278196497,8.84566912,3650.7,3649.3,2.74019]
[1733278196846,0.08566912,3650.6,3649.2,0.005]
[1733278197048,2.82503912,3650.5,3649.2,0.005]
[1733278197201,0.08566912,3650.4,3649.2,0.005]
[1733278197401,0.08566912,3650.3,3649.2,0.005]
[1733278197734,0.08566912,3650.3,3649.3,2.74023]
[1733278197897,8.76,3650.4,3649.3,2.74023]
[1733278198513,8.76,3650.4,3649.2,0.005]
[1733278198699,8.76,3650.4,3649.8,2.73984]
[1733278199100,8.76,3651.0,3650.1,2.73964]
[1733278199301,8.705248,3651.0,3650.2,2.73953]
[1733278199541,8.705248,3651.3,3650.0,45.96609186]
[1733278199704,8.705248,3651.3,3650.7,2.73917]
[1733278199901,2.7382,3652.1,3650.8,2.7391]
[1733278200101,0.08563798,3652.0,3650.8,0.27391]
[1733278200305,0.08563798,3652.2,3651.4,2.73865]
[1733278200502,0.08563798,3652.3,3651.5,2.73858]
[1733278200698,8.705248,3652.7,3651.6,2.73851]
[1733278200903,0.08561922,3652.6,3651.8,2.73833]
[1733278201198,0.1712339,3652.6,3651.7,2.73843]
[1733278201444,0.1,3650.8,3650.0,43.29122855]
[1733278201644,2.73958,3650.2,3650.0,41.92136855]
[1733278201948,0.37244341,3650.1,3650.0,41.92136855]
[1733278202110,0.45813057,3650.1,3650.0,41.92136855]
[1733278202307,0.37244341,3650.1,3650.0,41.92136855]
[1733278202933,12.705248,3650.1,3650.0,41.92136855]
[1733278203106,8.705248,3650.1,3650.0,41.92136855]
[1733278205147,8.705248,3650.8,3650.0,41.92136855]
[1733278205533,8.705248,3650.8,3650.0,44.66107855]
[1733278205739,8.705248,3650.8,3650.1,2.73963]
[1733278205917,0.2827,3651.2,3650.0,41.92136855]
[1733278206123,0.2827,3651.2,3650.3,2.73948]
[1733278206330,0.2827,3651.2,3650.4,2.73941]
[1733278206529,0.2827,3651.2,3650.2,2.73956]
[1733278206904,8.705248,3651.6,3650.0,41.92136855]
[1733278207104,8.705248,3651.6,3650.0,44.64720402]
[1733278207412,8.705248,3651.6,3650.1,2.73963]
[1733278207944,8.705248,3651.6,3650.0,41.92136855]
[1733278208320,11.443778,3651.6,3650.1,2.73963]
[1733278208523,8.705248,3651.6,3650.0,41.92136855]
[1733278208741,2.73867,3651.5,3650.0,41.92136855]
[1733278208947,8.705248,3651.6,3650.0,41.92136855]
[1733278209153,8.705248,3651.5,3650.4,2.73941]
[1733278209305,8.705248,3652.0,3650.0,44.64720402]
[1733278209510,8.705248,3651.8,3650.9,2.73903]
[1733278210431,2.73818,3652.1,3650.1,1.5195]
[1733278210639,8.705248,3652.1,3650.2,2.72583547]
[1733278211010,8.705248,3652.4,3650.9,2.73902]
[1733278211216,0.08563261,3652.3,3651.0,2.73895]
[1733278211465,8.79088061,3652.3,3650.2,2.72583547]
[1733278211672,8.705248,3652.3,3650.3,2.72583547]
[1733278211865,8.705248,3652.3,3651.3,2.73874]
[1733278212915,8.705248,3652.3,3651.1,1.5389]
[1733278213413,8.705248,3652.3,3651.2,2.73882]
[1733278213612,8.705248,3652.3,3651.5,2.73857]
[1733278213766,8.705248,3652.3,3651.1,1.5389]
[1733278213767,8.705248,3652.9,3651.6,2.73845]
[1733278213967,8.705248,3652.9,3651.1,1.5389]
[1733278214603,2.7378,3652.6,3651.1,4.27779]
[1733278214804,3.0,3652.8,3650.4,1.5684]
[1733278215018,2.7388,3651.3,3650.0,41.92136855]
[1733278215239,2.73907,3650.9,3650.0,41.92136855]
[1733278215404,2.73875,3651.3,3650.0,41.92136855]
[1733278215604,2.73958,3650.2,3650.0,41.92136855]
[1733278215845,8.705248,3650.1,3650.0,41.92136855]
[1733278216495,11.705248,3650.1,3650.0,41.92136855]
[1733278216695,11.7909352,3650.1,3650.0,41.92136855]
[1733278217096,11.84441876,3650.1,3650.0,41.92136855]
[1733278217297,11.84441876,3650.1,3650.0,41.89309855]
[1733278217494,11.84441876,3650.1,3650.0,40.90416422]
[1733278217736,11.84441876,3650.1,3648.0,2.74121]
[1733278217737,5.0,3648.1,3644.7,0.42904692]
[1733278217942,0.1,3647.3,3644.7,0.42904692]
[1733278218139,5.1,3647.1,3644.3,1.5251]
[1733278218436,2.74244,3646.4,3644.5,2.74383]
[1733278218636,8.76,3646.9,3644.3,1.5251]
[1733278218838,2.74224,3646.7,3644.9,2.74353]
[1733278219004,8.8135222,3647.0,3644.7,2.74367]
[1733278219005,2.74231,3646.6,3644.7,2.74367]
[1733278219339,8.76,3646.9,3644.3,1.5251]
[1733278219340,2.74252,3646.3,3644.4,2.7439]
[1733278219541,2.74252,3646.3,3644.3,1.5251]
[1733278219753,9.18885164,3646.9,3644.3,1.5251]
[1733278220042,2.74257,3646.3,3644.6,2.74375]
[1733278220256,2.74264,3646.2,3644.3,4.26905]
[1733278220548,8.76,3646.6,3644.3,4.26907]
[1733278220844,8.76,3646.6,3644.5,2.74383]
[1733278220845,2.74256,3646.3,3644.5,2.74383]
[1733278221544,11.55586015,3646.6,3644.8,3.4936]
[1733278221843,8.81356015,3646.6,3644.8,3.4936]
[1733278222017,2.74237,3646.5,3644.8,0.75]
[1733278222215,3.05357898,3646.5,3644.8,0.75]
[1733278222404,3.05357898,3646.5,3643.0,0.1]
[1733278222405,2.74371,3644.7,3642.2,2.74558]
[1733278222756,2.74422,3644.1,3642.0,2.74735745]
[1733278222976,0.05361607,3644.0,3642.1,1.5964]
[1733278223249,2.74441,3643.8,3642.2,0.15980475]
[1733278223413,3.0,3643.7,3642.1,1.5964]
[1733278223621,3.0,3643.5,3642.0,0.00164745]
[1733278223821,0.05363444,3643.4,3642.0,0.00164745]
[1733278224018,0.05363444,3643.4,3642.1,1.643]
[1733278224217,8.76,3644.5,3642.2,0.16446475]
[1733278224515,8.76,3644.4,3642.4,2.74538]
[1733278224717,8.76,3644.4,3642.6,2.74523]
[1733278224922,2.74425,3644.0,3642.1,1.643]
[1733278225100,5.74442,3643.8,3642.1,1.643]
[1733278225447,3.0,3643.8,3642.1,1.80746475]
[1733278225658,8.76,3643.9,3642.4,2.74539]
[1733278225956,3.0,3644.6,3642.7,2.74518]
[1733278226444,8.76,3644.5,3642.8,2.74509]
[1733278226754,8.76,3644.5,3642.8,2.7451]
[1733278226899,8.76,3645.1,3642.3,0.02745099]
[1733278227103,8.76,3645.2,3642.4,2.74544]
[1733278227316,5.0,3644.5,3642.2,0.45547522]
[1733278227664,2.74432,3643.9,3642.1,1.6645]
[1733278227943,8.76,3643.7,3642.1,1.6645]
[1733278228706,8.76,3643.8,3642.1,4.41012]
[1733278229438,8.76,3644.0,3642.2,2.74554]
[1733278229610,8.76,3643.9,3642.1,1.6645]
[1733278229806,8.76,3643.8,3642.1,2.10569475]
[1733278230348,8.76,3643.8,3642.1,1.6645]
[1733278230723,8.76,3643.8,3642.0,0.00164745]
[1733278231104,8.76,3643.8,3642.6,2.74526]
[1733278231348,8.76,3643.8,3642.0,0.00164745]
[1733278231567,8.76,3644.4,3642.1,2.74566]
[1733278231847,8.76,3644.4,3643.0,2.74495]
[1733278232028,8.76,3644.4,3642.7,2.74518]
[1733278232433,8.76,3644.4,3642.9,2.74504]
[1733278232608,5.0,3643.8,3642.0,0.00164745]
[1733278232807,8.76,3643.3,3642.0,0.00164745]
[1733278233047,0.36376396,3644.6,3642.0,0.4270302]
[1733278233348,2.84317,3645.5,3643.9,2.74428]
[1733278233349,8.76,3645.3,3643.9,2.74428]
[1733278233559,4.0,3644.0,3643.4,1.5495]
[1733278233720,0.05353732,3645.2,3643.4,1.5495]
[1733278234050,0.05353732,3645.2,3643.9,2.74426]
[1733278234610,0.05353732,3645.2,3643.7,2.74444]
[1733278234803,0.05353732,3645.2,3643.4,1.5495]
[1733278235037,0.05353732,3645.2,3643.8,2.74436]
[1733278235245,0.05353732,3645.2,3644.1,2.74412]
[1733278235545,0.05353732,3645.2,3644.0,2.74419]
[1733278236045,8.76,3647.0,3645.3,2.74319]
[1733278236251,8.76,3646.9,3645.4,2.74316]
[1733278236462,8.76,3646.9,3645.1,1.5001]
[1733278236619,8.76,3646.9,3645.4,2.74316]
[1733278236807,8.76,3646.9,3645.4,2.65361]
[1733278237008,8.76,3646.9,3645.1,1.5001]
[1733278237208,8.76,3645.8,3643.9,1.6379]
[1733278237529,3.0,3645.0,3643.3,1.5668]
[1733278237909,5.0,3645.8,3643.3,1.5668]
[1733278238206,2.74311,3645.5,3643.3,1.5668]
[1733278238417,8.76,3645.6,3643.4,0.431159]
[1733278238751,11.50304,3645.6,3643.9,2.74429]
[1733278238953,8.76,3645.6,3643.9,2.74429]
[1733278239155,2.74312,3645.5,3643.9,2.74429]
[1733278239303,8.76,3645.6,3643.9,2.74429]
[1733278239510,8.76,3645.6,3644.1,2.74413]
[1733278239710,2.74348,3645.0,3643.3,1.5668]
[1733278239943,3.0,3645.3,3643.6,2.74451]
[1733278240281,3.0,3645.3,3642.5,2.74532]
[1733278240282,2.74406,3644.3,3642.2,0.29905791]
[1733278240569,3.0,3644.4,3642.2,0.29905791]
[1733278240570,2.74452,3643.7,3642.2,0.29905791]
[1733278240727,2.74459,3643.6,3642.1,1.5067]
[1733278241053,2.74463,3643.5,3642.1,1.5067]
[1733278241254,5.74416,3644.1,3641.6,2.74603]
[1733278241255,2.74487,3643.2,3641.6,2.74603]
[1733278241603,2.74431,3643.9,3641.6,2.74603]
[1733278241724,2.7447,3643.4,3641.7,2.74592]
[1733278242057,8.76,3643.5,3641.5,1.69499963]
[1733278242354,8.76,3643.5,3642.2,1.6542]
[1733278242564,8.76,3644.2,3642.3,0.16558475]
[1733278242849,11.50411,3644.2,3642.5,2.74535]
[1733278243059,8.76,3644.2,3642.3,0.16558475]
[1733278243224,8.76,3644.5,3642.3,0.16558475]
[1733278243428,2.74395,3644.4,3642.8,2.74512]
[1733278243643,8.76,3644.5,3642.8,2.74512]
[1733278243938,2.74403,3644.3,3642.8,2.74512]
[1733278244158,2.74403,3644.3,3642.3,0.16558475]
[1733278244451,2.7441,3644.2,3642.5,2.74532]
[1733278244608,2.7441,3644.2,3642.6,0.29109047]
[1733278244911,2.7441,3644.2,3642.6,2.74527]
[1733278245113,2.74413,3644.2,3642.3,0.16558475]
[1733278245534,8.76,3644.5,3642.3,0.16558475]
[1733278245761,2.7442,3644.1,3642.3,0.16558475]
[1733278246330,0.08582284,3644.0,3642.3,0.16558475]
[1733278246601,2.7442,3644.1,3642.4,0.18197848]
[1733278246939,0.08582093,3644.0,3642.7,2.74519]
[1733278247167,2.74414,3644.2,3642.7,2.74519]
[1733278247335,0.08582093,3643.9,3642.7,2.74519]
[1733278247531,2.74414,3644.2,3642.7,2.74519]
[1733278247729,0.08581547,3644.1,3642.7,3.03790685]
[1733278247968,0.08581547,3644.0,3642.7,3.03790685]
[1733278248183,0.08581547,3643.9,3642.7,0.29271685]
[1733278248370,0.08581547,3643.8,3642.7,0.29271685]
[1733278248531,0.08581547,3643.7,3642.7,0.29271685]
[1733278248737,2.74426,3644.0,3642.7,0.29271685]
[1733278248950,0.08582245,3643.9,3642.7,3.03791685]
[1733278249153,2.74426,3644.0,3642.4,0.18197848]
[1733278249154,0.08582245,3643.8,3642.5,2.74534]
[1733278249350,0.08582245,3643.7,3642.6,2.74526]
[1733278249563,2.74426,3644.0,3642.6,2.74526]
[1733278249761,2.96745683,3643.9,3642.4,2.74542]
[1733278249978,2.96751683,3643.8,3642.4,2.74542]
[1733278250274,0.22312683,3643.7,3642.4,2.74542]
[1733278250446,2.74473,3643.4,3642.2,1.6542]
[1733278250650,2.73973,3643.4,3642.2,1.6542]
[1733278250851,0.22316269,3643.3,3642.2,1.6542]
[1733278251177,0.22318536,3643.2,3642.2,4.39975]
[1733278251377,0.08584052,3643.1,3642.5,2.74533]
[1733278251685,0.13734425,3643.8,3642.3,0.44013975]
[1733278251986,0.22317153,3643.7,3642.2,1.6542]
[1733278252136,0.08582728,3643.6,3642.2,1.6542]
[1733278252338,0.08582728,3643.5,3642.7,2.7452]
[1733278252544,0.13731867,3644.0,3642.7,3.01972]
[1733278252739,0.22314111,3643.9,3642.7,3.01972]
[1733278252974,0.22314111,3643.8,3642.7,3.01972]
[1733278253304,0.22314111,3643.8,3642.2,4.39971]
[1733278253305,0.08582244,3643.7,3642.8,3.047052]
[1733278253504,0.08582244,3643.6,3642.8,3.047052]
[1733278253681,0.13731629,3644.0,3642.8,3.047052]
[1733278253883,0.22314069,3643.9,3642.8,3.047052]
[1733278254077,0.22314069,3643.8,3642.8,3.047052]
[1733278254281,11.50421,3644.1,3642.8,3.047052]
[1733278254492,0.22314288,3644.0,3642.9,0.3047052]
[1733278254771,0.08582412,3643.9,3643.7,2.74444]
[1733278255008,0.13731876,3645.1,3644.0,2.74422]
[1733278255207,0.22313479,3645.0,3644.1,2.7441]
[1733278255367,0.22313479,3644.9,3644.1,2.7441]
[1733278255571,8.76,3645.4,3643.9,2.74428]
[1733278255572,0.22309463,3644.8,3643.9,2.74428]
[1733278255865,0.08581603,3644.7,3643.3,2.74476]
[1733278256115,2.74319,3645.4,3644.1,2.7441]
[1733278256266,0.2230718,3645.3,3643.6,2.74453]
[1733278256466,2.9664118,3645.2,3643.0,1.5565]
[1733278256772,0.2230718,3645.1,3644.1,2.74415]
[1733278257005,2.74314,3645.5,3644.1,2.74415]
[1733278257006,0.08579559,3645.0,3644.1,3.06929402]
[1733278257189,0.08579559,3644.9,3644.1,0.32514402]
[1733278257392,0.08579559,3644.9,3644.0,1.5618]
[1733278257709,0.08579559,3644.9,3642.9,0.1]
[1733278257710,8.76,3645.2,3643.5,4.34479]
[1733278257908,2.74358,3644.9,3643.5,4.34479]
[1733278258111,0.27661469,3645.1,3643.5,4.34479]
[1733278258112,0.22307737,3644.8,3643.5,1.6002]
[1733278258321,0.13727621,3644.7,3643.5,1.6002]
[1733278258474,0.22309257,3644.7,3643.5,4.3448]
[1733278258668,0.08580116,3644.6,3643.5,4.77928]
[1733278258870,0.08580116,3644.6,3643.5,2.03468]
[1733278259182,3.0,3643.7,3642.0,0.00164745]
[1733278259390,8.76,3643.5,3642.0,0.00164745]
[1733278259613,2.74484,3643.2,3642.0,0.00164745]
[1733278259824,0.08580116,3643.1,3642.0,3.0971332]
[1733278259972,0.05357562,3643.4,3642.1,2.74564]
[1733278260169,0.08583131,3643.3,3642.3,2.74551]
[1733278260372,0.08583131,3643.3,3642.1,2.74566]
[1733278260572,0.05357562,3643.4,3642.2,0.58428432]
[1733278260811,0.05357562,3643.4,3642.5,2.74536]
[1733278261029,0.05357562,3643.4,3642.6,2.74527]
[1733278261189,0.05357562,3643.4,3642.7,1.599]
[1733278261389,0.05357562,3643.4,3642.8,2.74511]
[1733278261722,0.36636612,3645.1,3642.8,2.74511]
[1733278261723,0.08582676,3644.2,3642.8,0.02744993]
[1733278261930,2.74371,3644.7,3642.9,0.16264499]
[1733278262122,8.76,3645.2,3643.3,2.74471]
[1733278262286,8.76,3645.2,3642.9,0.16264499]
[1733278262287,2.74362,3644.9,3643.4,2.74468]
[1733278262484,0.0858071,3644.8,3643.4,2.74468]
[1733278262681,0.0858071,3644.8,3643.4,0.274468]
[1733278262902,0.0858071,3644.8,3642.9,0.16264499]
[1733278263190,2.74351,3645.0,3642.9,0.16264499]
[1733278263399,0.13940158,3645.1,3642.5,2.74534]
[1733278263400,0.05359448,3645.1,3643.4,1.6365]
[1733278263596,0.05359448,3645.1,3643.7,1.6365]
[1733278263794,2.74266,3646.1,3644.8,4.38012]
[1733278264003,2.74247,3646.4,3645.0,2.74347]
[1733278264229,0.0857793,3646.3,3645.0,2.74347]
[1733278264719,0.0857793,3646.3,3645.1,2.74336]
[1733278264921,0.0857793,3646.3,3644.8,1.6365]
[1733278264922,2.8279593,3646.8,3645.3,2.74325]
[1733278265097,0.0857793,3646.7,3644.8,1.6365]
[1733278265301,0.0857793,3647.2,3644.9,0.16365]
[1733278265484,2.8276293,3647.2,3645.8,1.5244]
[1733278265684,0.0857793,3647.1,3645.8,1.5244]
[1733278265884,2.8276993,3647.1,3645.8,1.5244]
[1733278266084,2.74172,3647.4,3645.8,1.5244]
[1733278266324,1.0901933,3647.9,3646.2,2.74256]
[1733278266564,2.74161,3647.5,3646.2,2.74256]
[1733278266709,8.76,3648.2,3646.3,2.74247]
[1733278266937,0.08574462,3648.1,3645.9,0.02742378]
[1733278267242,0.08574462,3648.6,3646.1,2.94265]
[1733278267453,2.74072,3648.7,3647.4,1.617]
[1733278267733,11.50033,3649.2,3647.4,4.35866]
[1733278267938,2.74058,3648.9,3647.5,2.74158]
[1733278268108,0.08571828,3648.8,3647.5,0.435858]
[1733278268317,0.05338079,3649.2,3647.5,0.435858]
[1733278268499,0.05338079,3649.2,3647.6,0.02740646]
[1733278268698,0.08570429,3649.9,3648.5,1.617]
[1733278269125,40.73976,3650.0,3648.6,2.74076]
[1733278269326,40.73976,3650.0,3648.5,1.617]
[1733278269327,38.0,3650.0,3648.8,2.74059]
[1733278269847,38.0,3650.0,3648.8,0.435759]
[1733278270153,38.0,3650.0,3649.3,2.74023]
[1733278270315,38.0,3650.0,3649.3,2.74022]
[1733278270518,38.0,3650.0,3648.5,1.617]
[1733278270519,38.0,3650.0,3649.2,2.74026]
[1733278270844,38.0,3650.0,3649.4,2.74015]
[1733278271220,38.0,3650.0,3649.5,4.36224]
[1733278271543,38.0,3650.0,3649.5,2.058424]
[1733278271792,38.0,3650.0,3649.5,1.6222]
[1733278272018,38.0,3650.0,3649.8,2.73982]
[1733278273106,0.4992,3649.9,3646.8,2.74208]
[1733278273322,0.4992,3649.9,3646.5,0.1]
[1733278273323,8.76,3649.8,3646.5,0.1]
[1733278273491,11.49992,3649.8,3647.3,2.74175]
[1733278273676,8.76,3649.8,3647.6,2.74148]
[1733278274018,8.76,3649.8,3647.9,2.74127]
[1733278274176,8.76,3649.8,3647.3,0.274703]
[1733278274177,2.73998,3649.7,3647.3,0.274703]
[1733278274373,2.74004,3649.6,3647.8,2.74134]
[1733278274611,2.74004,3649.6,3647.9,2.74128]
[1733278274818,8.76,3649.8,3648.0,2.7412]
[1733278275122,8.76,3649.8,3648.2,2.74106]
[1733278275718,0.4992,3649.9,3648.3,2.74095]
[1733278275889,0.4992,3649.9,3648.3,2.74093]
[1733278276226,0.4992,3649.9,3647.7,0.02740727]
[1733278276227,0.4992,3649.9,3648.4,2.7409]
[1733278276514,0.4992,3649.9,3648.5,0.43449]
[1733278277523,0.4992,3649.9,3648.5,3.17532]
[1733278277720,0.4992,3649.9,3648.2,1.604]
[1733278278030,0.4992,3649.9,3648.4,2.74089]
[1733278279308,0.4992,3649.9,3648.5,2.7408]